bitfinex/quotes_SOLUSD_20250712
["timestamp","ask_amount","ask_price","bid_price","bid_amount"]
[1752311626171,9.99999999,162.2,162.19,0.06]
[1752311626364,13.82166148,162.2,162.19,31.14]
[1752311626569,14.54166148,162.2,162.19,31.14]
[1752311626873,10.71999999,162.2,162.19,31.14]
[1752311627448,14.54166148,162.2,162.19,31.14]
[1752311629777,10.71999999,162.2,162.19,31.14]
[1752311633884,9.99999999,162.2,162.19,31.14]
[1752311634077,9.99999999,162.2,162.19,34.96166149]
[1752311639592,9.99999999,162.2,162.19,31.14]
[1752311639784,10.71999999,162.2,162.19,31.14]
[1752311640280,0.72,162.2,162.19,31.14]
[1752311640494,10.71999999,162.2,162.19,31.14]
[1752311640793,10.71999999,162.2,162.19,0.06]
[1752311640794,14.54166148,162.2,162.19,0.06]
[1752311641082,14.54166148,162.2,162.13,0.06]
[1752311641083,9.99999999,162.15,162.13,0.06]
[1752311641284,9.99999999,162.14,162.13,0.06]
[1752311641473,9.99999999,162.15,162.13,31.14]
[1752311641675,10.71999999,162.14,162.13,31.14]
[1752311641878,0.72,162.14,162.13,31.14]
[1752311642385,10.71999999,162.14,162.13,31.14]
[1752311643087,0.72,162.14,162.13,31.14]
[1752311643288,10.71999999,162.14,162.13,31.14]
[1752311652093,14.54166148,162.14,162.13,31.14]
[1752311654504,10.71999999,162.14,162.13,31.14]
[1752311662393,9.99999999,162.14,162.13,34.96166149]
[1752311662900,9.99999999,162.14,162.13,35.08166149]
[1752311664395,9.99999999,162.14,162.13,34.96166149]
[1752311666916,9.99999999,162.14,162.13,31.14]
[1752311667097,9.99999999,162.14,162.13,34.96166149]
[1752311674909,9.99999999,162.14,162.13,33.58924442]
[1752311679790,9.99999999,162.15,162.13,33.58924442]
[1752311680112,9.99999999,162.15,162.14,2.44924442]
[1752311682506,10.70999999,162.15,162.14,2.44924442]
[1752311683293,9.99999999,162.14,162.13,33.58924442]
[1752311683614,10.70999999,162.14,162.13,33.58924442]
[1752311684510,0.71,162.14,162.13,33.58924442]
[1752311684713,10.70999999,162.14,162.13,33.58924442]
[1752311689228,9.99999999,162.14,162.13,33.58924442]
[1752311692623,10.71999999,162.14,162.13,33.58924442]
[1752311693402,0.72,162.14,162.13,33.58924442]
[1752311693601,10.71999999,162.14,162.13,33.58924442]
[1752311693798,9.99999999,162.14,162.13,33.58924442]
[1752311695629,10.71999999,162.15,162.13,33.58924442]
[1752311695830,10.71999999,162.15,162.14,2.44924442]
[1752311701544,9.99999999,162.15,162.14,2.44924442]
[1752311701708,0.03,162.18,162.16,26.0]
[1752311701902,0.03,162.18,162.17,50.31392839]
[1752311702345,0.03,162.2,162.17,50.43392839]
[1752311702520,0.03,162.2,162.19,2.44924442]
[1752311702702,0.03,162.2,162.19,33.52924442]
[1752311703146,0.75,162.2,162.19,33.52924442]
[1752311703434,10.74999999,162.2,162.19,31.08]
[1752311711040,14.57478758,162.2,162.19,31.08]
[1752311713633,10.74999999,162.2,162.19,31.08]
[1752311715249,10.74999999,162.2,162.19,34.90478759]
[1752311715250,10.02999999,162.2,162.19,34.90478759]
[1752311715425,10.71999999,162.2,162.19,34.90478759]
[1752311716033,10.02999999,162.2,162.19,34.90478759]
[1752311717450,10.71999999,162.2,162.19,34.90478759]
[1752311719549,10.02999999,162.2,162.19,34.90478759]
[1752311725934,10.71999999,162.2,162.19,31.08]
[1752311727840,10.02999999,162.2,162.19,34.90478759]
[1752311729542,0.03,162.2,162.19,35.02478759]
[1752311729743,10.02999999,162.2,162.19,35.02478759]
[1752311730244,0.03,162.2,162.19,35.02478759]
[1752311730446,0.03,162.2,162.19,34.90478759]
[1752311730447,10.02999999,162.2,162.19,34.90478759]
[1752311730841,10.71999999,162.2,162.19,60.88478759]
[1752311732057,10.71999999,162.2,162.19,34.88478759]
[1752311733644,10.71999999,162.2,162.19,31.06]
[1752311733861,10.71999999,162.2,162.19,34.88478759]
[1752311735965,10.02999999,162.2,162.19,34.88478759]
[1752311736770,10.71999999,162.2,162.19,34.88478759]
[1752311736969,10.02999999,162.2,162.19,35.00478759]
[1752311737160,0.03,162.22,162.21,26.0]
[1752311737362,0.03,162.22,162.21,60.88478759]
[1752311737669,0.03,162.25,162.24,26.0]
[1752311737968,0.03,162.25,162.24,64.79957518]
[1752311738183,0.03,162.25,162.24,81.58425915]
[1752311738745,0.03,162.25,162.24,84.72284663]
[1752311739550,0.03,162.25,162.24,81.58425915]
[1752311742450,10.02999999,162.28,162.25,16.78468397]
[1752311742745,0.03,162.28,162.27,3.82478759]
[1752311742946,0.03,162.28,162.27,3.91478759]
[1752311743363,0.03,162.28,162.27,20.69947156]
[1752311743556,0.1,162.29,162.27,20.69947156]
[1752311743557,0.1,162.29,162.28,42.78468397]
[1752311743765,0.1,162.29,162.28,77.75947156]
[1752311746882,0.1,162.3,162.28,77.75947156]
[1752311747185,0.1,162.3,162.29,3.91478759]
[1752311747367,0.1,162.3,162.29,46.60947156]
[1752311747681,0.1,162.3,162.29,77.64947156]
[1752311750055,0.8,162.3,162.25,0.09]
[1752311750253,10.79999999,162.3,162.29,3.82478759]
[1752311750459,10.79999999,162.3,162.29,34.86478759]
[1752311752980,10.09999999,162.3,162.29,34.86478759]
[1752311753280,0.1,162.3,162.29,34.86478759]
[1752311753486,10.09999999,162.3,162.29,34.86478759]
[1752311754063,0.1,162.3,162.29,34.95478759]
[1752311755162,0.1,162.3,162.29,51.73947156]
[1752311757669,0.1,162.3,162.29,51.73947156]
[1752311758484,0.1,162.31,162.3,16.78468397]
[1752311758786,0.1,162.31,162.3,24.52425915]
[1752311759273,0.1,162.31,162.3,20.69947156]
[1752311761065,0.1,162.31,162.3,20.60947156]
[1752311761272,0.1,162.31,162.3,20.69947156]
[1752311761777,0.1,162.33,162.32,42.78468397]
[1752311762096,0.1,162.33,162.32,81.49425915]
[1752311763595,8.50476467,162.34,162.32,81.49425915]
[1752311763803,0.7,162.33,162.27,0.09]
[1752311763977,9.20476467,162.33,162.32,3.82478759]
[1752311764172,9.20476467,162.33,162.32,34.88478759]
[1752311765974,9.20476467,162.33,162.32,3.82478759]
[1752311766367,9.20476467,162.33,162.32,34.88478759]
[1752311766570,8.50476467,162.33,162.32,3.82478759]
[1752311766789,8.50476467,162.33,162.32,34.88478759]
[1752311767167,9.23476467,162.34,162.32,34.88478759]
[1752311767371,9.23476467,162.34,162.33,3.82478759]
[1752311767592,8.53476467,162.34,162.33,3.82478759]
[1752311767976,9.23476467,162.34,162.33,3.82478759]
[1752311770090,0.03,162.34,162.33,3.82478759]
[1752311770398,8.53476467,162.34,162.33,3.82478759]
[1752311770782,0.03,162.34,162.33,3.82478759]
[1752311771710,8.53476467,162.34,162.33,3.82478759]
[1752311772001,9.23476467,162.34,162.32,31.06]
[1752311772205,9.23476467,162.34,162.33,3.82478759]
[1752311772789,0.73,162.34,162.33,3.82478759]
[1752311773192,9.23476467,162.34,162.33,3.82478759]
[1752311773920,8.50476467,162.33,162.32,31.06]
[1752311774089,9.17476467,162.33,162.32,34.88478759]
[1752311774604,8.50476467,162.33,162.32,34.88478759]
[1752311774806,9.17476467,162.33,162.32,34.88478759]
[1752311774991,0.67,162.33,162.32,34.88478759]
[1752311775194,9.17476467,162.33,162.32,34.88478759]
[1752311775395,8.50476467,162.33,162.32,34.88478759]
[1752311776202,8.53476467,162.34,162.32,34.88478759]
[1752311776400,8.53476467,162.34,162.33,3.82478759]
[1752311776606,9.20476467,162.34,162.33,3.82478759]
[1752311780504,9.20476467,162.34,162.32,31.06]
[1752311780692,9.20476467,162.34,162.33,3.82478759]
[1752311783515,9.20476467,162.34,162.32,31.06]
[1752311783809,8.53476467,162.34,162.33,3.82478759]
[1752311784189,0.03,162.34,162.33,3.82478759]
[1752311784388,9.20476467,162.34,162.33,3.82478759]
[1752311784589,0.7,162.34,162.33,3.82478759]
[1752311784788,9.20476467,162.34,162.33,3.82478759]
[1752311785000,0.7,162.34,162.33,3.82478759]
[1752311785296,8.53476467,162.34,162.33,3.82478759]
[1752311785886,0.7,162.34,162.33,3.82478759]
[1752311786198,9.20476467,162.34,162.33,3.82478759]
[1752311788399,0.7,162.34,162.33,3.82478759]
[1752311788606,9.20476467,162.34,162.33,3.82478759]
[1752311792827,0.7,162.34,162.33,3.82478759]
[1752311793017,9.20476467,162.34,162.33,3.82478759]
[1752311793426,0.7,162.34,162.33,3.82478759]
[1752311793619,9.20476467,162.34,162.33,3.82478759]
[1752311795022,9.20476467,162.34,162.3,0.06]
[1752311795023,8.50476467,162.31,162.3,0.06]
[1752311795204,8.50476467,162.31,162.3,31.12]
[1752311795400,8.50476467,162.3,162.25,16.78468397]
[1752311795623,8.50476467,162.27,162.26,34.88478759]
[1752311795818,9.17476467,162.27,162.26,60.88478759]
[1752311796629,9.17476467,162.27,162.26,34.88478759]
[1752311796805,9.17476467,162.27,162.26,31.06]
[1752311797119,8.50476467,162.25,162.24,26.56]
[1752311797422,8.50476467,162.25,162.24,57.64]
[1752311797423,9.17476467,162.25,162.24,57.64]
[1752311801418,9.17476467,162.25,162.24,61.46478759]
[1752311801625,8.50476467,162.25,162.24,61.46478759]
[1752311802024,9.17476467,162.26,162.24,61.46478759]
[1752311802331,9.17476467,162.26,162.25,3.82478759]
[1752311807924,8.50476467,162.26,162.25,3.82478759]
[1752311808106,8.50476467,162.27,162.26,26.0]
[1752311808306,8.50476467,162.27,162.26,60.90478759]
[1752311809424,9.19476467,162.28,162.26,60.90478759]
[1752311809613,9.19476467,162.28,162.27,3.82478759]
[1752311810030,8.50476467,162.28,162.27,3.82478759]
[1752311811235,9.19476467,162.28,162.27,3.82478759]
[1752311811432,8.50476467,162.29,162.27,3.82478759]
[1752311811630,8.50476467,162.29,162.28,34.90478759]
[1752311811631,9.19476467,162.29,162.28,34.90478759]
[1752311818146,8.50476467,162.29,162.28,34.90478759]
[1752311819214,9.19476467,162.29,162.28,34.90478759]
[1752311821340,9.19476467,162.29,162.28,31.08]
[1752311823658,8.50476467,162.26,162.25,0.06]
[1752311823860,8.50476467,162.26,162.25,31.14]
[1752311824055,9.19476467,162.26,162.25,31.14]
[1752311827869,15.70406467,162.26,162.25,31.14]
[1752311830945,19.52885226,162.26,162.25,31.14]
[1752311831353,15.70406467,162.26,162.25,31.14]
[1752311831548,19.52885226,162.26,162.25,31.14]
[1752311832171,15.70406467,162.26,162.25,31.14]
[1752311832358,19.52885226,162.26,162.25,31.14]
[1752311838066,15.70406467,162.26,162.25,31.14]
[1752311838259,19.52885226,162.26,162.25,31.14]
[1752311838763,15.70406467,162.26,162.25,31.14]
[1752311839161,9.19476467,162.26,162.25,31.14]
[1752311849191,13.01955226,162.26,162.25,0.06]
[1752311849392,13.01955226,162.26,162.25,31.12]
[1752311851580,9.19476467,162.26,162.25,31.12]
[1752311852395,8.50476467,162.26,162.25,31.12]
[1752311857885,8.50476467,162.26,162.25,34.94478759]
[1752311858280,8.50476467,162.26,162.25,31.12]
[1752311858483,9.20476467,162.26,162.25,0.06]
[1752311858691,9.20476467,162.26,162.25,31.12]
[1752311865291,8.50476467,162.26,162.25,31.12]
[1752311865675,9.21476467,162.26,162.25,31.12]
[1752311868178,10.86016467,162.26,162.25,31.12]
[1752311868787,14.68495226,162.26,162.25,0.06]
[1752311869092,14.68495226,162.26,162.25,31.12]
[1752311880614,14.68495226,162.26,162.25,0.06]
[1752311880615,20.92755226,162.26,162.25,0.06]
[1752311881016,37.71223623,162.26,162.25,0.06]
[1752311881893,41.53702382,162.26,162.25,0.06]
[1752311882693,37.71223623,162.26,162.25,0.06]
[1752311886319,20.92755226,162.26,162.25,0.06]
[1752311891323,8.50476467,162.26,162.25,0.06]
[1752311891516,9.21476467,162.26,162.25,0.06]
[1752311891720,20.80545226,162.26,162.25,0.06]
[1752311902643,37.59013623,162.26,162.25,0.06]
[1752311902934,36.21352901,162.26,162.25,0.06]
[1752311903435,62.21352901,162.26,162.25,0.06]
[1752311903637,8.50476467,162.19,162.18,0.06]
[1752311904013,10.95294504,162.19,162.18,0.06]
[1752311904213,8.50476467,162.19,162.18,0.06]
[1752311906132,8.50476467,162.19,162.18,31.14]
[1752311909242,8.50476467,162.19,162.18,31.29]
[1752311909440,8.50476467,162.19,162.18,31.14]
[1752311915641,8.50476467,162.19,162.18,35.11557541]
[1752311916842,8.4759,162.26,162.18,35.11557541]
[1752311916843,8.50476467,162.2,162.18,35.11557541]
[1752311917146,8.50476467,162.2,162.19,3.97557541]
[1752311917319,8.50476467,162.21,162.2,26.0]
[1752311917519,8.50476467,162.21,162.2,26.15]
[1752311917717,8.50476467,162.21,162.2,29.97557541]
[1752311918641,8.50476467,162.23,162.21,26.0]
[1752311918944,8.50476467,162.25,162.24,26.0]
[1752311919129,8.53476467,162.25,162.24,33.65115082]
[1752311919746,8.53476467,162.25,162.24,29.97557541]
[1752311920947,8.53476467,162.25,162.24,35.05557541]
[1752311922942,8.53476467,162.25,162.24,31.23]
[1752311923143,8.53476467,162.25,162.24,34.90557541]
[1752311923326,8.53476467,162.25,162.24,35.05557541]
[1752311924051,8.53476467,162.25,162.24,3.97557541]
[1752311924229,8.53476467,162.25,162.24,35.03557541]
[1752311926546,8.53476467,162.25,162.24,24.58583479]
[1752311926547,0.03,162.25,162.24,24.58583479]
[1752311926862,8.53476467,162.25,162.24,55.64583479]
[1752311927237,0.03,162.25,162.24,55.64583479]
[1752311927546,8.53476467,162.25,162.24,55.64583479]
[1752311929055,0.03,162.25,162.24,55.64583479]
[1752311929438,0.03,162.25,162.24,81.64583479]
[1752311929750,8.53476467,162.3,162.27,26.0]
[1752311929931,8.50476467,162.29,162.28,31.21]
[1752311930121,8.50476467,162.29,162.28,35.03557541]
[1752311930543,8.50476467,162.29,162.28,34.88557541]
[1752311931863,8.50476467,162.29,162.28,35.03557541]
[1752311932858,8.50476467,162.29,162.28,34.88557541]
[1752311933233,8.50476467,162.28,162.25,16.93468397]
[1752311933445,8.50476467,162.28,162.27,29.82557541]
[1752311934738,8.50476467,162.28,162.27,29.97557541]
[1752311935559,8.50476467,162.28,162.27,29.82557541]
[1752311939062,8.50476467,162.28,162.27,29.97557541]
[1752311939740,8.50476467,162.29,162.27,29.97557541]
[1752311939944,8.53476467,162.3,162.28,35.03557541]
[1752311940137,0.03,162.3,162.29,3.97557541]
[1752311941978,8.53476467,162.3,162.29,3.97557541]
[1752311942163,8.53476467,162.3,162.29,0.15]
[1752311942357,8.53476467,162.3,162.29,3.97557541]
[1752311942677,0.03,162.3,162.29,3.97557541]
[1752311943980,8.53476467,162.3,162.29,3.97557541]
[1752311944475,8.53476467,162.3,162.29,3.82557541]
[1752311947881,0.03,162.3,162.29,3.82557541]
[1752311948181,9.20476467,162.3,162.29,3.82557541]
[1752311948385,8.53476467,162.3,162.29,3.82557541]
[1752311951280,8.50476467,162.29,162.27,26.0]
[1752311951585,8.50476467,162.29,162.28,34.86557541]
[1752311952081,9.17476467,162.29,162.28,34.86557541]
[1752311954390,9.17476467,162.29,162.28,31.04]
[1752311954701,8.50476467,162.24,162.21,16.93468397]
[1752311954988,8.50476467,162.24,162.23,29.82557541]
[1752311958201,8.50476467,162.25,162.24,42.78468397]
[1752311958394,8.50476467,162.26,162.24,55.62583479]
[1752311958689,8.50476467,162.27,162.26,26.0]
[1752311958896,8.50476467,162.27,162.26,60.86557541]
[1752311959419,8.53476467,162.3,162.26,61.01557541]
[1752311959573,8.50476467,162.28,162.27,0.15]
[1752311959774,8.53476467,162.3,162.27,35.03557541]
[1752311960085,8.53476467,162.3,162.29,3.82557541]
[1752311960284,8.53476467,162.3,162.29,34.88557541]
[1752311960586,9.21476467,162.3,162.29,34.88557541]
[1752311962489,8.53476467,162.3,162.29,34.88557541]
[1752311967880,9.21476467,162.3,162.29,3.82557541]
[1752311968093,9.21476467,162.3,162.29,34.88557541]
[1752311968890,9.21476467,162.3,162.29,31.06]
[1752311969097,9.21476467,162.3,162.29,34.88557541]
[1752311971289,8.53476467,162.3,162.29,34.88557541]
[1752311971682,0.03,162.3,162.29,51.67025938]
[1752311971992,0.03,162.3,162.29,51.82025938]
[1752311973978,0.03,162.34,162.33,42.78468397]
[1752311974296,0.03,162.34,162.33,77.67025938]
[1752311974485,0.1,162.35,162.34,20.61025938]
[1752311974689,0.1,162.35,162.34,20.76025938]
[1752311977185,0.1,162.36,162.34,20.76025938]
[1752311977382,0.1,162.36,162.35,35.05557541]
[1752311978605,0.1,162.36,162.35,38.15443374]
[1752311989449,0.1,162.36,162.35,3.09885833]
[1752311989706,0.77,162.36,162.35,51.65025938]
[1752311990409,0.1,162.36,162.35,51.65025938]
[1752311990589,0.77,162.36,162.35,34.86557541]
[1752311990789,9.27476467,162.36,162.35,51.65025938]
[1752311990991,0.77,162.36,162.35,77.65025938]
[1752311991291,9.27476467,162.36,162.35,54.71169573]
[1752311991710,9.27476467,162.36,162.35,80.71169573]
[1752311993005,0.77,162.36,162.35,80.71169573]
[1752311993189,9.27476467,162.36,162.35,80.71169573]
[1752311993912,0.77,162.36,162.35,63.92701176]
[1752311994513,9.27476467,162.36,162.35,63.92701176]
[1752311995413,9.27476467,162.36,162.35,60.10143635]
[1752311995712,0.77,162.36,162.35,63.92701176]
[1752311995891,9.27476467,162.36,162.35,63.92701176]
[1752311998394,9.27476467,162.36,162.35,60.86557541]
[1752311998987,9.27476467,162.36,162.35,57.04]
[1752311999212,9.27476467,162.36,162.35,60.86557541]
[1752312000212,0.77,162.36,162.35,60.86557541]
[1752312000391,9.27476467,162.36,162.35,60.86557541]
[1752312000912,0.77,162.36,162.35,60.86557541]
[1752312001104,9.27476467,162.36,162.35,60.86557541]
[1752312001810,0.77,162.36,162.35,60.86557541]
[1752312001996,9.27476467,162.36,162.35,60.86557541]
[1752312003015,0.77,162.36,162.35,60.86557541]
[1752312003216,9.27476467,162.36,162.35,60.86557541]
[1752312004318,0.77,162.36,162.35,60.86557541]
[1752312004497,9.27476467,162.36,162.35,60.86557541]
[1752312005315,9.27476467,162.36,162.35,57.04]
[1752312005614,9.27476467,162.36,162.35,60.86557541]
[1752312006312,9.27476467,162.36,162.35,57.04]
[1752312007010,9.27476467,162.36,162.35,57.1]
[1752312007218,9.27476467,162.36,162.35,31.1]
[1752312008309,9.27476467,162.36,162.35,31.08]
[1752312018816,9.28476467,162.36,162.35,31.08]
[1752312019108,8.60476467,162.36,162.35,34.90557541]
[1752312026516,9.28476467,162.36,162.35,34.90557541]
[1752312026738,9.28476467,162.36,162.35,0.06]
[1752312027230,8.50476467,162.31,162.3,2.44290804]
[1752312027436,9.18476467,162.31,162.3,2.44290804]
[1752312027730,8.50476467,162.3,162.28,3.12309174]
[1752312027937,8.50476467,162.3,162.29,2.44290804]
[1752312028115,9.18476467,162.3,162.29,28.44290804]
[1752312028313,9.18476467,162.3,162.29,59.46290804]
[1752312029048,9.18476467,162.3,162.29,60.83929354]
[1752312030219,9.18476467,162.3,162.29,57.02]
[1752312030839,9.18476467,162.3,162.29,31.02]
[1752312031538,9.18476467,162.3,162.29,31.04]
[1752312034143,8.50476467,162.26,162.25,26.62]
[1752312034479,9.18476467,162.26,162.25,61.47929354]
[1752312034749,8.50476467,162.26,162.25,87.47929354]
[1752312034934,9.18476467,162.26,162.25,87.47929354]
[1752312037136,9.18476467,162.26,162.25,52.62]
[1752312037440,9.18476467,162.26,162.25,57.66]
[1752312040032,8.50476467,162.26,162.25,61.47929354]
[1752312041138,8.50476467,162.26,162.25,57.66]
[1752312041530,8.50476467,162.26,162.25,61.47929354]
[1752312042452,9.18476467,162.26,162.25,57.66]
[1752312043751,8.50476467,162.26,162.25,31.1]
[1752312043956,8.50476467,162.26,162.25,34.91929354]
[1752312045935,8.50476467,162.27,162.25,34.91929354]
[1752312046249,8.50476467,162.27,162.26,3.81929354]
[1752312047237,8.50476467,162.28,162.27,26.0]
[1752312047443,8.50476467,162.28,162.27,60.85929354]
[1752312049562,8.50476467,162.28,162.27,57.04]
[1752312049735,8.50476467,162.28,162.27,60.85929354]
[1752312049939,9.18476467,162.28,162.27,60.85929354]
[1752312050934,8.50476467,162.28,162.27,60.85929354]
[1752312052046,8.50476467,162.29,162.27,61.06929354]
[1752312052243,8.50476467,162.29,162.28,20.81397751]
[1752312052454,8.50476467,162.3,162.28,20.81397751]
[1752312052656,8.50476467,162.3,162.29,34.85929354]
[1752312054566,8.50476467,162.31,162.29,34.85929354]
[1752312054768,8.50476467,162.31,162.3,3.81929354]
[1752312055944,9.18476467,162.31,162.3,3.81929354]
[1752312056556,0.68,162.31,162.3,3.81929354]
[1752312056756,9.18476467,162.31,162.3,3.81929354]
[1752312061087,8.50476467,162.31,162.3,3.81929354]
[1752312061291,8.50476467,162.32,162.31,26.0]
[1752312061454,8.50476467,162.32,162.31,60.85929354]
[1752312062668,9.18476467,162.32,162.31,60.85929354]
[1752312062851,8.50476467,162.32,162.31,60.85929354]
[1752312063879,9.18476467,162.32,162.31,57.04]
[1752312064770,8.50476467,162.29,162.28,29.81929354]
[1752312064974,9.18476467,162.29,162.25,14.47929354]
[1752312065281,8.50476467,162.27,162.26,31.04]
[1752312065579,9.18476467,162.27,162.26,57.04]
[1752312065787,0.68,162.27,162.26,57.04]
[1752312065968,9.18476467,162.27,162.26,31.04]
[1752312069083,8.50476467,162.27,162.26,31.04]
[1752312069883,8.50476467,162.27,162.26,51.85397751]
[1752312070761,8.50476467,162.27,162.25,0.06]
[1752312070961,9.18476467,162.26,162.25,0.06]
[1752312071189,9.18476467,162.26,162.25,31.12]
[1752312072086,8.50476467,162.26,162.25,31.12]
[1752312072397,8.50476467,162.26,162.25,34.93929354]
[1752312075003,9.17476467,162.26,162.25,34.93929354]
[1752312075894,9.17476467,162.26,162.25,31.12]
[1752312082593,9.17476467,162.26,162.25,0.06]
[1752312082777,9.17476467,162.26,162.25,31.12]
[1752312097098,9.17476467,162.26,162.25,31.1]
[1752312101810,9.17476467,162.26,162.25,0.06]
[1752312102039,9.17476467,162.26,162.25,31.1]
[1752312105021,9.17476467,162.26,162.25,0.06]
[1752312105314,8.50476467,162.26,162.25,31.1]
[1752312105515,8.50476467,162.26,162.25,0.06]
[1752312105718,8.50476467,162.26,162.25,31.1]
[1752312107026,8.50476467,162.26,162.25,0.06]
[1752312107200,8.50476467,162.26,162.25,31.1]
[1752312107400,9.21476467,162.26,162.25,31.1]
[1752312108526,8.50476467,162.26,162.25,31.1]
[1752312109817,9.21476467,162.26,162.25,31.1]
[1752312110324,8.50476467,162.26,162.25,31.1]
[1752312112604,8.50476467,162.27,162.25,33.75587193]
[1752312112805,8.50476467,162.27,162.26,2.44587193]
[1752312114436,8.50476467,162.28,162.26,19.4405559]
[1752312114604,6.3561,162.32,162.27,59.69587193]
[1752312114605,8.50476467,162.29,162.27,59.69587193]
[1752312114804,8.50476467,162.29,162.28,2.65587193]
[1752312115719,8.50476467,162.29,162.28,0.21]
[1752312115918,8.50476467,162.29,162.28,2.44587193]
[1752312118021,8.50476467,162.28,162.25,0.06]
[1752312118327,8.50476467,162.27,162.26,31.04]
[1752312118716,9.21476467,162.27,162.26,31.04]
[1752312119329,9.21476467,162.27,162.26,33.48587193]
[1752312119823,8.50476467,162.27,162.26,33.48587193]
[1752312120922,8.50476467,162.27,162.26,34.86034648]
[1752312121418,8.50476467,162.28,162.26,34.86034648]
[1752312121730,8.50476467,162.29,162.28,26.0]
[1752312121928,8.50476467,162.29,162.28,60.86034648]
[1752312123124,9.21476467,162.29,162.25,0.06]
[1752312123330,8.50476467,162.27,162.26,31.04]
[1752312123534,8.50476467,162.27,162.26,34.86034648]
[1752312125433,8.50476467,162.28,162.26,35.07034648]
[1752312125612,8.50476467,162.28,162.27,3.82034648]
[1752312128740,8.50476467,162.29,162.28,26.0]
[1752312128912,8.50476467,162.29,162.28,60.86034648]
[1752312129113,9.21476467,162.29,162.28,3.82034648]
[1752312129328,9.21476467,162.29,162.28,34.86034648]
[1752312130135,8.50476467,162.29,162.28,34.86034648]
[1752312131512,8.50476467,162.29,162.28,3.82034648]
[1752312131711,8.50476467,162.29,162.26,3.82034648]
[1752312131712,8.50476467,162.27,162.26,3.82034648]
[1752312131926,8.50476467,162.27,162.26,34.86034648]
[1752312132741,9.21476467,162.27,162.26,34.86034648]
[1752312133238,0.71,162.27,162.26,34.86034648]
[1752312133538,9.21476467,162.27,162.26,34.86034648]
[1752312134231,9.21476467,162.27,162.25,0.06]
[1752312134436,8.50476467,162.27,162.26,31.04]
[1752312134647,8.50476467,162.27,162.26,34.86034648]
[1752312134938,9.20476467,162.27,162.26,34.86034648]
[1752312136137,8.50476467,162.27,162.26,34.86034648]
[1752312140137,8.50476467,162.27,162.26,3.82034648]
[1752312140342,8.50476467,162.27,162.26,34.86034648]
[1752312140940,9.20476467,162.27,162.26,34.86034648]
[1752312141141,9.20476467,162.27,162.25,0.06]
[1752312141341,8.50476467,162.27,162.26,34.86034648]
[1752312142047,9.20476467,162.27,162.26,34.86034648]
[1752312142653,8.50476467,162.27,162.26,35.07034648]
[1752312142866,8.50476467,162.29,162.27,16.78468397]
[1752312143034,8.50476467,162.29,162.28,60.86034648]
[1752312143356,8.50476467,162.29,162.28,3.82034648]
[1752312143654,9.20476467,162.29,162.28,34.86034648]
[1752312145356,9.20476467,162.29,162.28,3.82034648]
[1752312145530,9.20476467,162.29,162.28,34.86034648]
[1752312146047,8.50476467,162.27,162.26,3.82034648]
[1752312146246,8.50476467,162.27,162.26,34.86034648]
[1752312146649,9.20476467,162.27,162.26,34.86034648]
[1752312147940,9.20476467,162.27,162.26,3.82034648]
[1752312148245,9.20476467,162.27,162.26,34.86034648]
[1752312149252,9.20476467,162.27,162.26,3.82034648]
[1752312149472,9.20476467,162.27,162.26,34.86034648]
[1752312152259,9.20476467,162.27,162.26,3.82034648]
[1752312152460,9.20476467,162.27,162.26,34.86034648]
[1752312155158,9.20476467,162.27,162.26,3.82034648]
[1752312155461,9.20476467,162.27,162.26,34.86034648]
[1752312156842,8.50476467,162.27,162.26,34.86034648]
[1752312157748,8.50476467,162.28,162.26,35.07034648]
[1752312157953,8.50476467,162.28,162.27,3.82034648]
[1752312158349,8.50476467,162.29,162.27,3.82034648]
[1752312158545,8.50476467,162.29,162.28,34.86034648]
[1752312159445,8.50476467,162.29,162.28,31.04]
[1752312159647,8.50476467,162.29,162.28,34.86034648]
[1752312162374,9.20476467,162.29,162.28,3.82034648]
[1752312162557,8.50476467,162.29,162.28,34.86034648]
[1752312165849,8.50476467,162.29,162.28,31.04]
[1752312166053,8.50476467,162.29,162.28,34.86034648]
[1752312169162,9.22476467,162.29,162.28,34.86034648]
[1752312171783,8.50476467,162.29,162.28,35.07034648]
[1752312172353,8.50476467,162.29,162.28,34.86034648]
[1752312174685,8.50476467,162.34,162.32,16.78468397]
[1752312174989,8.53476467,162.35,162.34,42.78468397]
[1752312175182,8.53476467,162.35,162.34,46.60503045]